bitfinex/quotes_SOLUSD_20250612
["timestamp","ask_amount","ask_price","bid_price","bid_amount"]
[1749761231158,6.52358275,153.29,153.24,43.1624]
[1749761231360,48.68885718,153.27,153.24,6.6224]
[1749761231591,6.52358275,153.29,153.24,6.6224]
[1749761231787,55.21243993,153.29,153.24,55.31125718]
[1749761231990,48.68885718,153.29,153.24,55.31125718]
[1749761232300,6.52188091,153.33,153.28,48.68885718]
[1749761232464,32.59239945,153.41,153.28,48.68885718]
[1749761232465,48.68885718,153.38,153.32,48.68885718]
[1749761232665,48.68885718,153.39,153.35,48.68885718]
[1749761232886,55.39985659,153.43,153.34,36.46]
[1749761233158,48.88222641,153.43,153.33,36.48]
[1749761234290,47.83951939,153.39,153.34,47.83951939]
[1749761234492,47.83951939,153.42,153.34,18.64964886]
[1749761234797,47.83951939,153.37,153.33,84.31951939]
[1749761234966,42.29407547,153.43,153.33,36.48]
[1749761235166,47.83951939,153.38,153.33,84.31951939]
[1749761235365,54.35969934,153.37,153.33,84.31951939]
[1749761235584,54.35969934,153.37,153.33,36.48]
[1749761235785,54.35969934,153.37,153.32,47.83951939]
[1749761235786,47.83951939,153.34,153.26,18.64964886]
[1749761236064,47.83951939,153.32,153.27,47.83951939]
[1749761236291,22.82062984,153.37,153.29,47.83951939]
[1749761236491,47.83951939,153.34,153.3,47.83951939]
[1749761236788,22.82062984,153.37,153.26,0.42648471]
[1749761236789,47.83951939,153.32,153.26,0.42648471]
[1749761237093,47.83951939,153.32,153.3,36.44]
[1749761237294,47.83951939,153.32,153.29,36.42]
[1749761237472,47.83951939,153.32,153.25,18.64964886]
[1749761237473,6.52273172,153.31,153.25,18.64964886]
[1749761237678,6.52273172,153.31,153.26,84.29951939]
[1749761237993,51.84588195,153.46,153.3,47.83951939]
[1749761237994,9.05011661,153.44,153.3,47.83951939]
[1749761238203,47.83951939,153.38,153.32,18.64964886]
[1749761238384,26.0,153.4,153.31,36.46]
[1749761238700,47.83951939,153.32,153.24,6.6224]
[1749761239001,47.83951939,153.32,153.27,47.83951939]
[1749761239802,6.52273172,153.31,153.27,47.83951939]
[1749761239991,6.52273172,153.31,153.25,55.10964886]
[1749761240175,6.52273172,153.31,153.28,47.83951939]
[1749761240374,6.52273172,153.31,153.27,47.83951939]
[1749761240612,6.52060511,153.36,153.28,47.83951939]
[1749761240772,47.83951939,153.33,153.29,36.38]
[1749761240974,47.83951939,153.34,153.29,84.21951939]
[1749761241476,47.83951939,153.33,153.29,36.38]
[1749761241804,6.52230628,153.32,153.3,47.83951939]
[1749761242000,47.83951939,153.34,153.29,84.21951939]
[1749761242293,47.83951939,153.3,153.24,6.6224]
[1749761242511,47.83951939,153.25,153.21,47.83951939]
[1749761242792,47.83951939,153.25,153.22,37.9648]
[1749761243002,26.0,153.31,153.22,37.9648]
[1749761243003,47.83951939,153.24,153.22,1.6448]
[1749761243393,88.02816901,153.36,153.22,47.83951939]
[1749761243578,22.82807199,153.32,153.22,18.64964886]
[1749761243899,47.83951939,153.28,153.23,47.83951939]
[1749761244080,47.83951939,153.3,153.25,47.83951939]
[1749761244400,47.83951939,153.29,153.25,36.32]
[1749761244610,47.83951939,153.28,153.25,36.32]
[1749761244812,22.82807199,153.32,153.25,84.15951939]
[1749761245010,47.83951939,153.3,153.25,84.15951939]
[1749761245208,47.83951939,153.28,153.25,36.32]
[1749761245511,47.83951939,153.27,153.25,36.32]
[1749761245812,26.0,153.33,153.25,84.15951939]
[1749761245813,6.52358275,153.29,153.25,84.15951939]
[1749761246111,6.52358275,153.29,153.26,47.83951939]
[1749761246414,70.67205901,153.29,153.25,36.32]
[1749761246788,54.36310214,153.29,153.25,36.32]
[1749761246997,6.51975485,153.38,153.28,47.83951939]
[1749761247232,22.81914199,153.38,153.33,47.83951939]
[1749761247505,22.81914199,153.38,153.28,6.3347]
[1749761247713,6.52273172,153.31,153.29,36.2]
[1749761247899,47.83951939,153.3,153.29,36.2]
[1749761248412,6.52273172,153.31,153.29,36.2]
[1749761248614,6.52239061,153.32,153.29,84.03951939]
[1749761248831,47.83951939,153.35,153.3,47.83951939]
[1749761248988,54.3601245,153.36,153.29,36.2]
[1749761249184,47.83951939,153.35,153.3,47.83951939]
[1749761249418,6.51932981,153.39,153.33,66.48916825]
[1749761249591,8.51952932,153.45,153.36,47.83951939]
[1749761249799,6.51720542,153.44,153.4,47.83951939]
[1749761250000,6.51720542,153.44,153.41,36.12]
[1749761250200,47.83951939,153.43,153.41,36.12]
[1749761250404,6.51720542,153.44,153.41,36.12]
[1749761250591,26.0,153.39,153.3,0.14216157]
[1749761250791,47.83951939,153.33,153.29,1.5916]
[1749761250995,47.83951939,153.36,153.29,37.6916]
[1749761251224,47.83951939,153.31,153.29,37.6916]
[1749761251389,47.83951939,153.3,153.22,7.7606]
[1749761251585,47.83951939,153.26,153.22,7.7606]
[1749761251792,6.52528548,153.25,153.22,7.7606]
[1749761252221,54.36480487,153.25,153.22,7.7606]
[1749761252413,22.83849918,153.25,153.22,1.5916]
[1749761252926,6.52528548,153.25,153.22,1.5916]
[1749761253134,6.52528548,153.25,153.23,83.95951939]
[1749761253324,6.52528548,153.25,153.23,36.12]
[1749761253525,16.31033913,153.28,153.23,84.82426782]
[1749761253526,6.52500507,153.26,153.23,84.82426782]
[1749761253731,6.52500507,153.26,153.23,36.12]
[1749761254030,48.70426782,153.25,153.23,36.12]
[1749761254334,55.22927289,153.26,153.23,36.12]
[1749761254504,48.70426782,153.25,153.22,37.6116]
[1749761254905,55.22927289,153.26,153.22,37.6116]
[1749761255412,48.70426782,153.24,153.22,37.6116]
[1749761255724,22.83715435,153.26,153.17,6.169]
[1749761255930,48.70426782,153.22,153.17,54.87326782]
[1749761256313,48.70426782,153.22,153.17,42.129]
[1749761256713,48.70426782,153.2,153.17,6.169]
[1749761256906,48.70426782,153.2,153.15,4.66243932]
[1749761257107,48.70426782,153.2,153.15,53.36670714]
[1749761257324,26.0,153.23,153.15,3.10443932]
[1749761257528,48.70426782,153.18,153.15,3.10443932]
[1749761257731,26.0,153.13,153.05,0.09732811]
[1749761258035,71.56215705,153.12,153.05,0.09732811]
[1749761258219,26.0,153.09,153.05,0.09732811]
[1749761258421,48.70426782,153.06,153.05,0.09732811]
[1749761258616,71.56215705,153.12,153.05,0.09732811]
[1749761258812,48.70426782,153.06,153.05,0.09732811]
[1749761259015,48.70426782,153.06,153.03,4.03187739]
[1749761259513,0.28432314,153.1,153.03,4.03187739]
[1749761259721,6.53082549,153.12,153.03,52.73614521]
[1749761259939,48.70426782,153.1,153.04,48.70426782]
[1749761260239,6.53082549,153.12,153.03,39.91187739]
[1749761260542,48.70426782,153.12,153.07,48.70426782]
[1749761260847,48.70426782,153.12,153.04,61.88]
[1749761261011,6.52947832,153.16,153.04,61.88]
[1749761261212,48.70426782,153.13,153.04,35.86]
[1749761261410,48.70426782,153.15,153.05,18.64964886]
[1749761261618,48.70426782,153.13,153.08,48.70426782]
[1749761262040,48.70426782,153.1,153.03,4.17403896]
[1749761262347,48.70426782,153.11,153.04,35.82]
[1749761262542,74.70426782,153.12,153.03,4.03187739]
[1749761262718,48.70426782,153.08,153.03,88.51614521]
[1749761263042,22.85341168,153.15,153.05,48.70426782]
[1749761263337,48.00389194,153.1,153.05,48.00389194]
[1749761263538,26.0,153.14,153.04,54.40964886]
[1749761263726,48.00389194,153.11,153.04,54.40964886]
[1749761263930,48.00389194,153.11,153.06,48.00389194]
[1749761264120,32.52989785,153.15,153.09,48.00389194]
[1749761264317,48.00389194,153.16,153.11,48.00389194]
[1749761265042,48.00389194,153.15,153.07,18.64964886]
[1749761265242,54.53303102,153.16,153.11,48.00389194]
[1749761265427,16.31790443,153.21,153.14,48.00389194]
[1749761265630,48.00389194,153.15,153.11,35.66]
[1749761265948,48.00389194,153.14,153.1,35.7]
[1749761266646,48.00389194,153.16,153.11,48.00389194]
[1749761266822,22.84595299,153.2,153.11,48.00389194]
[1749761267027,6.52656311,153.22,153.12,0.28432314]
[1749761267239,6.52613717,153.23,153.19,48.00389194]
[1749761267439,54.53002911,153.23,153.19,35.66]
[1749761267939,6.52613717,153.23,153.21,48.00389194]
[1749761268141,54.53002911,153.23,153.19,35.66]
[1749761268347,48.00389194,153.22,153.19,35.66]
[1749761268548,54.53002911,153.23,153.19,35.66]
[1749761269044,6.52613717,153.23,153.21,48.00389194]
[1749761269365,6.5257113,153.24,153.2,48.00389194]
[1749761269562,48.00389194,153.23,153.19,35.66]
[1749761269746,22.83998955,153.24,153.17,48.00389194]
[1749761269951,48.00389194,153.22,153.18,48.00389194]
[1749761270171,48.00389194,153.22,153.16,35.54]
[1749761270349,22.83998955,153.24,153.17,48.00389194]
[1749761270540,48.00389194,153.22,153.17,48.00389194]
[1749761270742,48.00389194,153.21,153.17,48.00389194]
[1749761271247,54.53130708,153.2,153.15,54.48139194]
[1749761271453,54.53130708,153.2,153.16,35.52]
[1749761271750,54.53130708,153.2,153.15,89.98139194]
[1749761271943,54.53130708,153.2,153.15,6.4775]
[1749761271944,6.52741514,153.2,153.15,6.4775]
[1749761272140,39.1414965,153.29,153.19,48.00389194]
[1749761272355,39.1414965,153.29,153.24,48.00389194]
[1749761272356,22.83253962,153.29,153.24,48.00389194]
[1749761272544,22.83253962,153.29,153.25,48.00389194]
[1749761272744,48.00389194,153.28,153.17,0.28432314]
[1749761272966,48.00389194,153.25,153.21,48.00389194]
[1749761273283,48.00389194,153.27,153.22,48.00389194]
[1749761273570,48.00389194,153.27,153.23,48.00389194]
[1749761273867,48.00389194,153.27,153.22,83.46389194]
[1749761274573,22.83253962,153.29,153.23,48.00389194]
[1749761274801,22.83253962,153.29,153.26,48.00389194]
[1749761275165,6.52358275,153.29,153.27,48.00389194]
[1749761275489,48.00389194,153.32,153.28,48.00389194]
[1749761275693,48.00389194,153.32,153.27,48.00389194]
[1749761275994,48.00389194,153.32,153.26,35.34]
[1749761276285,48.00389194,153.27,153.22,83.28389194]
[1749761276461,26.0,153.31,153.17,18.933972]
[1749761276462,48.00389194,153.28,153.23,83.28389194]
[1749761276657,48.00389194,153.28,153.23,48.00389194]
[1749761276901,48.00389194,153.28,153.24,35.26]
[1749761277264,48.00389194,153.29,153.24,83.26389194]
[1749761277570,6.52400835,153.28,153.24,83.26389194]
[1749761278105,22.83402922,153.28,153.17,0.42648471]
[1749761278265,48.00389194,153.24,153.2,48.00389194]
[1749761278465,48.00389194,153.25,153.2,48.00389194]
[1749761278685,48.00389194,153.27,153.22,48.00389194]
[1749761278890,48.00389194,153.27,153.23,48.00389194]
[1749761279561,6.52485971,153.26,153.23,48.00389194]
[1749761279770,6.52485971,153.26,153.25,48.00389194]
[1749761279997,6.52485971,153.26,153.24,35.1]
[1749761280182,6.52485971,153.26,153.24,83.10389194]
[1749761280384,6.52485971,153.26,153.24,35.1]
[1749761280699,26.0,153.22,153.13,1.641]
[1749761280905,48.00389194,153.16,153.13,1.641]
[1749761281202,26.0,153.21,153.1,54.02489194]
[1749761281503,48.00389194,153.14,153.11,35.06]
[1749761281703,54.53429094,153.13,153.11,35.06]
[1749761281901,48.00389194,153.12,153.07,1.6597]
[1749761282116,22.85639651,153.13,153.07,1.6597]
[1749761282317,48.00389194,153.08,153.05,35.04]
[1749761282624,48.00389194,153.06,153.04,6.021]
[1749761282928,48.00389194,153.05,153.03,4.03187739]
[1749761283214,48.00389194,153.04,153.03,4.03187739]
[1749761283388,48.85655018,153.04,153.03,4.03187739]
[1749761284192,74.85655018,153.04,153.03,4.03187739]
[1749761284987,0.14216157,153.08,153.03,4.03187739]
[1749761285191,48.85655018,153.04,153.03,4.03187739]
[1749761285792,48.99871175,153.04,153.03,4.03187739]
[1749761286108,26.0,153.01,153.0,2.0]
[1749761286307,26.42648471,153.01,153.0,2.0]
[1749761286517,26.42648471,153.01,152.89,0.55614974]
[1749761286518,10.0,152.97,152.89,0.55614974]
[1749761286697,74.85655018,152.9,152.89,0.55614974]
[1749761286890,74.85655018,152.9,152.89,1e-08]
[1749761287093,26.0,152.92,152.75,45.21470851]
[1749761287290,21.91241654,152.96,152.75,45.21470851]
[1749761287291,26.0,152.93,152.75,38.66822765]
[1749761287493,26.0,152.87,152.75,3.28822765]
[1749761287797,26.0,152.83,152.75,0.4405296]
[1749761287986,22.89676827,152.86,152.75,0.4405296]
[1749761288192,48.85655018,152.82,152.75,0.4405296]
[1749761288416,48.85655018,152.8,152.75,0.4405296]
[1749761288616,48.89676827,152.86,152.76,48.85655018]
[1749761288794,6.54148129,152.88,152.77,36.32]
[1749761289117,6.54148129,152.88,152.78,26.0]
[1749761289505,26.0,152.92,152.79,18.64964886]
[1749761289739,6.53973095,152.92,152.8,6.54450261]
[1749761289927,6.53973095,152.92,152.86,48.85655018]
[1749761290126,6.53973095,152.92,152.84,36.44]
[1749761290334,48.85655018,152.9,152.84,85.29655018]
[1749761290645,48.85655018,152.9,152.84,48.85655018]
[1749761290865,48.85655018,152.88,152.76,32.54621628]
[1749761291031,26.0,152.89,152.8,48.85655018]
[1749761291226,0.42648471,152.91,152.78,26.0]
[1749761291433,6.53973095,152.92,152.79,36.42]
[1749761291956,48.85655018,152.83,152.78,48.85655018]
[1749761292131,26.0,152.87,152.75,38.1805296]
[1749761292464,26.0,152.87,152.75,0.4405296]
[1749761292665,26.14216157,152.88,152.75,0.4405296]
[1749761292963,26.0,152.87,152.75,49.29707978]
[1749761293267,26.0,152.87,152.78,48.85655018]
[1749761293465,26.0,152.87,152.79,48.85655018]
[1749761293670,48.85655018,152.82,152.75,0.4405296]
[1749761293874,48.85655018,152.8,152.75,0.4405296]
[1749761294177,48.85655018,152.83,152.75,0.4405296]
[1749761294350,48.85655018,152.83,152.78,48.85655018]
[1749761294548,6.54231834,152.86,152.76,37.88]
[1749761294993,6.54022236,152.9,152.83,48.85655018]
[1749761295281,55.39463452,152.95,152.89,48.85655018]
[1749761295448,55.39463452,152.95,152.87,37.88]
[1749761295651,26.0,152.93,152.81,6.1847]
[1749761295878,26.0,152.91,152.81,44.0847]
[1749761296061,26.0,152.91,152.83,48.85655018]
[1749761296387,48.85655018,152.86,152.81,55.04125018]
[1749761296547,26.0,152.87,152.75,0.4405296]
[1749761296750,48.85655018,152.81,152.73,5.8076296]
[1749761296970,48.85655018,152.82,152.77,48.85655018]
[1749761297149,26.0,152.89,152.73,5.8076296]
[1749761297564,26.0,152.85,152.73,5.8076296]
[1749761297758,22.89976445,152.84,152.76,48.85655018]
[1749761297946,48.85655018,152.83,152.73,5.8076296]
[1749761298146,6.54278984,152.84,152.8,48.85655018]
[1749761298865,6.54278984,152.84,152.75,18.64964886]
[1749761299072,6.54278984,152.84,152.76,0.28432314]
[1749761299250,6.54278984,152.84,152.8,48.85655018]
[1749761299653,55.39848397,152.86,152.81,48.85655018]
[1749761299963,6.54193379,152.86,152.82,47.85655018]
[1749761300144,6.54193379,152.86,152.76,0.28432314]
[1749761300346,55.39848397,152.86,152.76,0.28432314]
[1749761300549,55.39848397,152.86,152.81,48.85655018]
[1749761301257,6.54193379,152.86,152.82,48.85655018]
[1749761301458,48.85655018,152.85,152.8,87.11655018]
[1749761301665,48.85655018,152.85,152.8,87.05655018]
[1749761301869,6.54150585,152.87,152.82,48.85655018]
[1749761302187,16.35334901,152.88,152.82,48.85655018]
[1749761302188,6.53680219,152.98,152.86,48.85655018]
[1749761302352,48.85655018,152.97,152.87,56.80964886]
[1749761302552,32.53680219,152.98,152.87,56.80964886]
[1749761302751,48.85655018,152.93,152.87,38.16]
[1749761302952,48.85655018,152.94,152.89,48.85655018]
[1749761303149,48.85655018,152.95,152.9,48.85655018]
[1749761303484,48.85655018,152.94,152.87,38.16]
[1749761303649,48.87880768,152.98,152.86,6.0254]
[1749761303650,48.87880768,152.98,152.89,48.85655018]
[1749761303850,48.85655018,152.96,152.91,48.85655018]
[1749761304049,48.85655018,152.94,152.89,48.85655018]
[1749761304274,48.85655018,152.93,152.89,48.85655018]
[1749761304471,48.85655018,152.91,152.88,38.18]
[1749761304679,26.0,152.95,152.88,38.18]
[1749761304858,48.85655018,152.92,152.87,48.85655018]
[1749761305063,26.0,152.95,152.88,48.85655018]
[1749761305064,48.85655018,152.93,152.88,48.85655018]
[1749761305256,26.0,152.95,152.88,48.85655018]
[1749761305453,48.85655018,152.93,152.88,48.85655018]
[1749761305655,48.85655018,152.89,152.8,6.0254]
[1749761305972,48.85655018,152.89,152.84,48.85655018]
[1749761306158,48.85655018,152.92,152.88,48.85655018]
[1749761306355,22.88628784,152.93,152.89,48.85655018]
[1749761306553,48.85655018,152.9,152.86,38.04]
[1749761306779,55.58098476,152.93,152.86,38.04]
[1749761306983,48.85655018,152.87,152.82,86.87655018]
[1749761307171,55.58098476,152.93,152.86,48.85655018]
[1749761307373,81.58098476,152.93,152.87,48.85655018]
[1749761307578,48.85655018,152.91,152.82,38.02]
[1749761307887,6.54065014,152.89,152.86,48.85655018]
[1749761308056,6.54065014,152.89,152.88,48.85655018]
[1749761308257,6.54065014,152.89,152.87,48.85655018]
[1749761308477,6.54065014,152.89,152.86,86.81655018]
[1749761308682,6.54065014,152.89,152.87,48.85655018]
[1749761308983,6.53936698,152.92,152.88,48.85655018]
[1749761309280,6.53936698,152.92,152.9,48.85655018]
[1749761309483,6.53936698,152.92,152.91,48.85655018]
[1749761309672,6.53936698,152.92,152.9,37.84]
[1749761309879,6.54022236,152.9,152.81,18.64964886]
[1749761310069,48.85655018,152.84,152.73,6.5470972]
[1749761310274,48.85655018,152.83,152.8,43.8654]
[1749761310487,48.85655018,152.82,152.79,37.84]
[1749761311089,26.0,152.81,152.74,6.5425]
[1749761311293,0.14216157,152.85,152.77,48.85655018]
[1749761311294,48.85655018,152.82,152.77,48.85655018]
[1749761311770,48.85655018,152.8,152.74,44.3625]
[1749761312098,6.54493095,152.79,152.74,44.3625]
[1749761312264,22.90725832,152.79,152.75,48.85655018]
[1749761312458,6.54493095,152.79,152.76,48.85655018]
[1749761312673,6.54493095,152.79,152.77,37.74]
[1749761312965,6.54493095,152.79,152.76,48.85655018]
[1749761313164,6.54493095,152.79,152.75,48.85655018]
[1749761313493,22.90725832,152.79,152.76,86.55655018]
[1749761313961,16.36232737,152.79,152.76,86.55655018]
[1749761314166,16.36232737,152.79,152.76,37.7]
[1749761315185,16.36232737,152.79,152.76,86.55655018]
[1749761315371,6.54450261,152.8,152.77,48.85655018]
[1749761315764,6.54450261,152.8,152.78,48.85655018]
[1749761316070,48.85655018,152.79,152.71,1.6009]
[1749761316271,48.85655018,152.75,152.69,6.5425]
[1749761316482,48.85655018,152.73,152.68,48.85655018]
[1749761316671,26.0,152.76,152.67,0.9184576]
[1749761316871,48.85655018,152.72,152.68,48.85655018]
[1749761317093,48.85655018,152.69,152.67,0.9184576]
[1749761317268,26.0,152.69,152.67,0.9184576]
[1749761317864,48.85655018,152.68,152.59,0.10347742]
[1749761318083,48.85655018,152.63,152.59,0.10347742]
[1749761318286,74.85655018,152.64,152.59,48.9600276]
[1749761318489,48.85655018,152.63,152.59,0.10347742]
[1749761318678,26.0,152.64,152.59,0.10347742]
[1749761319392,48.85655018,152.63,152.59,0.10347742]
[1749761320098,6.55179191,152.63,152.59,48.9600276]
[1749761320286,55.40834209,152.63,152.59,0.10347742]
[1749761320694,6.55179191,152.63,152.59,0.10347742]
[1749761321191,55.40834209,152.63,152.59,0.10347742]
[1749761321368,81.40834209,152.63,152.59,0.10347742]
[1749761322184,55.46557146,152.63,152.59,0.10347742]
[1749761322397,81.32340989,152.63,152.59,0.10347742]
[1749761322603,55.46557146,152.63,152.59,0.10347742]
[1749761323372,55.7498946,152.63,152.62,2.60942273]
[1749761323775,55.7498946,152.63,152.62,0.94502273]
[1749761324774,55.46557146,152.63,152.62,0.94502273]
[1749761324984,55.32340989,152.63,152.62,0.94502273]
[1749761325285,6.46685971,152.63,152.62,0.94502273]
[1749761325478,55.32340989,152.63,152.62,0.94502273]
[1749761325676,6.46685971,152.63,152.62,0.94502273]
[1749761325913,6.55050438,152.66,152.62,49.80157291]
[1749761326215,167.76,152.78,152.62,0.94502273]
[1749761326216,48.85655018,152.72,152.62,0.94502273]
[1749761326507,26.0,152.7,152.62,0.94502273]
[1749761326715,48.85655018,152.65,152.62,0.94502273]
[1749761327682,26.0,152.7,152.62,0.94502273]
[1749761327908,48.85655018,152.66,152.62,0.94502273]
[1749761328095,6.5509335,152.65,152.61,48.80157291]
[1749761328405,48.85655018,152.64,152.59,86.1800276]
[1749761328986,48.85655018,152.64,152.63,0.08339668]
[1749761329785,6.5509335,152.65,152.63,0.08339668]
[1749761330387,55.40748368,152.65,152.63,0.08339668]
[1749761330590,48.85655018,152.64,152.63,0.08339668]
[1749761330787,6.5509335,152.65,152.63,0.08339668]
[1749761331107,6.5509335,152.65,152.63,48.93994686]
[1749761331605,32.73751063,152.73,152.64,48.85655018]
[1749761331780,48.85655018,152.7,152.65,36.96]
[1749761331980,6.54793085,152.72,152.65,36.96]
[1749761331981,48.85655018,152.68,152.65,36.96]
[1749761332279,48.85655018,152.71,152.67,48.85655018]
[1749761332790,48.85655018,152.71,152.65,36.96]
[1749761332987,48.85655018,152.71,152.66,48.85655018]
[1749761333191,6.54793085,152.72,152.69,48.85655018]
[1749761333503,6.54793085,152.72,152.66,1.595]
[1749761333687,22.91775798,152.72,152.66,1.595]
[1749761333888,6.54793085,152.72,152.7,48.85655018]
[1749761334088,48.85655018,152.71,152.66,1.595]
[1749761334290,6.54878847,152.7,152.66,1.595]
[1749761334484,6.54878847,152.7,152.67,48.85655018]
[1749761334683,55.40533865,152.7,152.67,37.04]
[1749761334911,6.54878847,152.7,152.67,85.89655018]
[1749761335106,6.54878847,152.7,152.68,48.85655018]
[1749761335278,6.54878847,152.7,152.67,85.89655018]
[1749761335480,6.54878847,152.7,152.64,6.6496]
[1749761335682,48.85655018,152.67,152.64,6.6496]
[1749761336215,48.85655018,152.65,152.63,0.08339668]
[1749761336581,48.85655018,152.64,152.63,0.08339668]
[1749761336984,48.85655018,152.67,152.63,0.08339668]
[1749761337312,48.85655018,152.64,152.63,0.08339668]
[1749761337610,74.85655018,152.64,152.56,48.85655018]
[1749761337808,25.70641093,152.7,152.56,37.02]
[1749761338105,48.85655018,152.61,152.56,85.87655018]
[1749761338290,6.55299317,152.61,152.58,48.85655018]
[1749761338603,6.55222617,152.62,152.58,48.85655018]
[1749761338804,6.55190973,152.63,152.6,48.85655018]
[1749761339015,6.55007532,152.67,152.62,48.85655018]
[1749761339227,48.85655018,152.66,152.61,85.83655018]
[1749761339512,22.92526363,152.67,152.62,48.85655018]
[1749761339819,48.85655018,152.64,152.58,48.85655018]
[1749761340103,22.92526363,152.67,152.6,48.85655018]
[1749761340306,6.5509335,152.65,152.61,48.85655018]
[1749761340528,6.5509335,152.65,152.6,48.85655018]
[1749761340733,48.85655018,152.62,152.54,0.42648471]
[1749761340886,48.85655018,152.6,152.53,18.64964886]
[1749761341283,48.85655018,152.6,152.52,10.0]
[1749761341506,48.85655018,152.6,152.55,48.85655018]
[1749761341719,6.5509335,152.65,152.59,48.9600276]
[1749761341905,22.92826727,152.65,152.59,0.10347742]
[1749761342110,71.78481745,152.65,152.59,48.9600276]
[1749761342418,22.92426156,152.68,152.62,48.85655018]
[1749761342607,48.85655018,152.66,152.6,36.88]
[1749761342916,48.85655018,152.66,152.61,48.85655018]
[1749761343214,22.92426156,152.68,152.61,48.85655018]
[1749761343514,48.85655018,152.66,152.61,48.85655018]
[1749761343699,22.92426156,152.68,152.6,36.88]
[1749761343912,22.92426156,152.68,152.59,0.10347742]
[1749761343913,48.85655018,152.61,152.59,0.10347742]
[1749761344201,55.40963012,152.6,152.59,0.10347742]
[1749761344593,6.55307994,152.6,152.59,0.10347742]
[1749761344789,32.55307994,152.6,152.59,0.10347742]
[1749761344999,32.55307994,152.6,152.52,10.0]
[1749761345000,97.79232998,152.6,152.52,10.0]
[1749761345223,48.85655018,152.53,152.52,10.0]
[1749761345514,48.9357798,152.6,152.52,10.0]
[1749761345719,6.55307994,152.6,152.54,48.85655018]
[1749761345891,48.85655018,152.59,152.53,18.64964886]
[1749761346107,48.85655018,152.59,152.54,48.85655018]
[1749761346302,48.93223641,152.63,152.54,48.85655018]
[1749761346831,48.93223641,152.63,152.52,46.78]
[1749761346832,48.85655018,152.58,152.52,10.0]
[1749761347137,48.93223641,152.63,152.53,48.85655018]
[1749761347302,48.85655018,152.6,152.55,48.85655018]
[1749761347499,48.93223641,152.63,152.52,46.68]
[1749761347702,48.85655018,152.58,152.52,46.68]
[1749761347921,48.85655018,152.59,152.54,48.85655018]
[1749761348236,6.55565753,152.54,152.52,10.0]
[1749761348415,55.41220771,152.54,152.52,10.0]
[1749761348607,6.55565753,152.54,152.52,10.0]
[1749761349153,6.55436848,152.57,152.53,48.85655018]
[1749761349312,6.55408003,152.58,152.55,48.85655018]
[1749761349511,48.85655018,152.57,152.53,36.62]
[1749761349711,22.9357798,152.6,152.52,10.0]
[1749761349948,48.85655018,152.59,152.53,48.85655018]
[1749761350151,14.9671,152.78,152.59,18.64964886]
[1749761350441,48.85655018,152.73,152.68,48.85655018]
[1749761350647,22.91175699,152.76,152.68,36.58]
[1749761350648,48.85655018,152.71,152.68,36.58]
[1749761350947,71.76830717,152.76,152.7,48.85655018]
[1749761351240,48.85655018,152.72,152.68,36.58]
[1749761351448,6.54621628,152.76,152.69,67.50619904]
[1749761351738,48.85655018,152.75,152.68,36.58]
[1749761351907,48.85655018,152.71,152.68,36.58]
[1749761352113,26.0,152.75,152.68,85.43655018]
[1749761352440,55.40448103,152.72,152.68,36.58]
[1749761352810,6.54793085,152.72,152.68,85.43655018]
[1749761353013,6.54793085,152.72,152.69,48.85655018]
[1749761353212,6.54764339,152.73,152.69,48.85655018]
[1749761353513,6.54621628,152.76,152.72,48.85655018]
[1749761353728,55.40148113,152.79,152.74,48.85655018]
[1749761353926,6.54493095,152.79,152.75,48.85655018]
[1749761354234,6.54407434,152.81,152.77,48.85655018]
[1749761354455,22.90426019,152.81,152.64,10.0]
[1749761354611,81.62463189,152.81,152.68,18.64964886]
[1749761354808,81.62463189,152.81,152.71,48.85655018]
[1749761355115,81.62463189,152.81,152.7,48.85655018]
[1749761355313,48.85655018,152.75,152.71,48.85655018]
[1749761355628,81.62463189,152.81,152.68,55.10964886]
[1749761355629,48.85655018,152.78,152.73,48.85655018]
[1749761356022,48.85655018,152.76,152.72,36.52]
[1749761356533,81.62463189,152.81,152.73,48.85655018]
[1749761356534,75.08055755,152.81,152.73,48.85655018]
[1749761356729,75.08055755,152.81,152.72,36.52]
[1749761356730,48.85655018,152.79,152.74,48.85655018]
[1749761356945,48.85655018,152.78,152.73,48.85655018]
[1749761357327,48.85655018,152.76,152.72,36.52]
[1749761357640,75.08055755,152.81,152.72,85.37655018]
[1749761357842,48.85655018,152.77,152.72,85.37655018]
[1749761358249,48.85655018,152.75,152.72,36.52]
[1749761358444,16.36665865,152.75,152.72,36.52]
[1749761358748,48.85655018,152.76,152.72,36.52]
[1749761358916,55.63919616,152.77,152.67,6.4216]
[1749761359120,22.91025724,152.77,152.71,48.85655018]
[1749761359330,48.85655018,152.76,152.68,54.94964886]